Cogmind - Beta 9.6 @@@ ROGUE MODE // 2020.09.08 @ 14:26:46 Player: Hilbert Result: Smashed by cave-in Performance ------------- Evolutions (0) 0 Regions Visited (2) 400 Robots Destroyed (17) 85 Value Destroyed (381) 381 Prototype IDs (0) 0 Alien Tech Used (0) 0 Bonus (0) 0 TOTAL SCORE: 866 Bonus ------- None Cogmind --------- Core Integrity 0/250 Matter 186/300 Energy 100/100 System Corruption 6% Temperature Cool (0) Movement Treading (160) Location -10/Mines Parts ------- > --- POWER (1) -------- (None) > --- PROPULSION (2) --- Light Treads > --- UTILITY (2) ------ Small Storage Unit Medium Storage Unit > --- WEAPON (2) ------- (None) > --- INVENTORY (10) --- Light Treads Wheel Compact Wheel Improved Heat Sink Power Shielding Small Laser Small Laser Peak State ------------ > --- POWER ------------ Light Ion Engine > --- PROPULSION ------- Light Treads Wheel > --- UTILITY ---------- Small Storage Unit Medium Storage Unit > --- WEAPON ----------- Medium Laser Small Laser > --- INVENTORY -------- Light Treads Wheel Wheel Compact Wheel Improved Heat Sink Power Shielding Small Laser Grenade Launcher [Rating: 8] Favorites ----------- Power Light Ion Engine Engine Light Ion Engine Propulsion Light Treads Treads Light Treads Wheel Wheel Utility Small Storage Unit Storage Small Storage Unit Weapon Assault Rifle Energy Gun Small Laser Ballistic Gun Assault Rifle Launcher Grenade Launcher Build | -11 -10 -10 ------- Run | Scr Mat Min Slots Evolved . | . . . Power . | . . . Propulsion . | . . . Utility . | . . . Weapon . | . . . Parts Attached 17 | 6 8 3 Power 3 | 1 1 1 Engine 3 | 1 1 1 Core . | . . . Reactor . | . . . Propulsion 5 | 2 3 . Treads 2 | 1 1 . Leg . | . . . Wheel 3 | 1 2 . Hover . | . . . Flight . | . . . Utility 2 | 1 1 . Device . | . . . Storage 2 | 1 1 . Processor . | . . . Hackware . | . . . Protection . | . . . Artifact . | . . . Weapon 7 | 2 3 2 Energy Gun 2 | . 2 . Energy Cannon . | . . . Ballistic Gun 4 | 2 1 1 Ballistic Cannon . | . . . Launcher 1 | . . 1 Special Weapon . | . . . Impact Weapon . | . . . Slashing Weapon . | . . . Piercing Weapon . | . . . Special Melee Weapon . | . . . Unidentified Prototypes . | . . . Parts Lost 12 | . 7 5 Power 3 | . 2 1 Propulsion 3 | . 2 1 Utility . | . . . Weapon 6 | . 3 3 Highest Loss Streak 5 | . 4 5 Average Slot Usage (%) 85 | . 83 86 Engine 6 | . 12 2 Treads 13 | . 13 14 Wheel 13 | . 13 13 Storage 24 | . 20 28 Energy Gun 5 | . 9 3 Ballistic Gun 14 | . 14 14 Launcher 6 | . . 10 Naked Turns . | . . . Heaviest Build 20 | 11 18 20 Greatest Support 20 | 20 20 20 Greatest Overweight (x) 1 | . 1 1 Average Overweight (x) . | . . . Largest Inventory Capacity 10 | 6 10 10 Average Capacity 8 | 5 7 10 Most Carried 8 | 4 8 8 Average Carried 6 | 2 5 7 Final Capacity 10 | 6 10 10 Final Carried 7 | 4 6 7 Class Distribution -------------------- 100% | Mutant Dominant Class ---------------- Mutant | -10/Materials Mutant | -10/Mines Resources | -11 -10 -10 ----------- Run | Scr Mat Min Matter Collected 500 | 260 193 47 Remotely . | . . . Salvage Created 353 | . 349 4 Parts 27 | . 23 4 Haulers Intercepted . | . . . Recyclers Shooed . | . . . Parts Field Recycled . | . . . Retrieved Matter . | . . . Parts Self-Destructed . | . . . Prevented . | . . . Kills | -11 -10 -10 ------- Run | Scr Mat Min Combat Hostiles Destroyed 17 | . 13 4 Guns 13 | . 13 . AOE 4 | . . 4 Classes Destroyed 3 | . 2 1 Swarmer 9 | . 6 3 Grunt 7 | . 7 . Assembled 1 | . . 1 Best Kill Streak 6 | . 6 3 Combat Bots Only 6 | . 6 3 Max Kills in Single Turn 3 | . 1 3 Gunslinging . | . . . Exploded 3 | . . 3 Melee . | . . . Uniques/NPCs Destroyed . | . . . Combat | -11 -10 -10 -------- Run | Scr Mat Min Damage Taken 1551 | . 749 802 Core 310 | . 126 184 Absorbed by Shields . | . . . Core Remaining (%) 100 | 100 . . Volleys Fired 59 | . 45 14 Largest 2 | . 2 2 Hottest 90 | . 90 50 Shots Fired 102 | . 74 28 Gun 92 | . 74 18 Cannon . | . . . Launcher 10 | . . 10 Special . | . . . Kinetic 64 | . 46 18 Thermal 28 | . 28 . Explosive 10 | . . 10 Electromagnetic . | . . . Robot Hit Streak 16 | . 16 5 Robot Miss Streak 4 | . 3 4 Penetration Max . | . . . Secondary Targets 2 | . 2 . Max Gunslinging Chain 1 | . 1 . Shots Hit Robots 73 | . 57 16 Core Hits 33 | . 21 12 Critical Hits . | . . . Critical Kills . | . . . Critical Parts Destroyed . | . . . Melee Attacks . | . . . Impact . | . . . Slashing . | . . . Piercing . | . . . Sneak Attacks . | . . . Combat Hostiles . | . . . Follow-up Attacks . | . . . Damage Inflicted 1107 | . 725 382 Guns 807 | . 725 82 Cannons . | . . . Explosions 300 | . . 300 Melee . | . . . Ramming . | . . . Kinetic 528 | . 446 82 Thermal 355 | . 279 76 Explosive 224 | . . 224 Electromagnetic . | . . . Impact . | . . . Slashing . | . . . Piercing . | . . . Highest Corruption . | . . . Average Corruption . | . . . Corruption Purged . | . . . Overload Shots . | . . . Overflow Damage . | . . . Projectiles . | . . . Explosions . | . . . Melee . | . . . Knockbacks . | . . . Impact . | . . . Kinetic . | . . . Secondary . | . . . Self-Inflicted Damage 19 | . . 19 Shots 2 | . . 2 Rammed . | . . . Targets Rammed . | . . . Kicked . | . . . Crushed . | . . . Highest Temperature 175 | . 175 11 Average Temperature 83 | . 86 6 Received Heat Transfer 308 | . 288 20 Siege Activations . | . . . Robots Corrupted . | . . . Combat Hostiles . | . . . Parts Fried . | . . . Impact Corruptions . | . . . Robots Melted . | . . . Combat Hostiles . | . . . Parts Melted . | . . . Heat Transferred 746 | . 646 100 Parts Sabotaged . | . . . Parts Stolen . | . . . Parts Stripped . | . . . Power Chain Reactions . | . . . Missiles Intercepted . | . . . Alert | -11 -10 -10 ------- Run | Scr Mat Min Peak Influence 275 | . 275 130 Average Influence 113 | . 143 106 Maximum Alert Level 1 | . 1 . Low Security (%) 91 | 100 75 100 Level 1 8 | . 24 . Level 2 . | . . . Level 3 . | . . . Level 4 . | . . . Level 5 . | . . . High Security . | . . . Max Security . | . . . Squads Dispatched 2 | . 2 . Investigation 1 | . 1 . Extermination . | . . . Reinforcement 1 | . 1 . Assault . | . . . Garrison . | . . . Intercept . | . . . Construction Impeded . | . . . Haulers Reinforced . | . . . Stealth | -11 -10 -10 --------- Run | Scr Mat Min Distress Signals . | . . . Communications Jammed . | . . . Distress Signals . | . . . Times Spotted 20 | . 16 4 Peak Tracking Total 4 | . 4 3 Tactical Retreats . | . . . Traps | -11 -10 -10 ------- Run | Scr Mat Min Traps Triggered 1 | . 1 . Indirectly . | . . . Trap Hack Attempts . | . . . Triggered . | . . . Disarmed . | . . . Reprogrammed . | . . . Reused . | . . . Traps Extracted . | . . . Installed . | . . . Triggered . | . . . Machines | -11 -10 -10 ---------- Run | Scr Mat Min Machines Disabled 4 | . . 4 Max in Single Turn 4 | . . 4 Machines Sabotaged . | . . . Garrisons Compromised . | . . . Overloaded Fab Kills . | . . . Fab Network Shutdowns . | . . . Hacking | -11 -10 -10 --------- Run | Scr Mat Min Machines Accessed 3 | . 3 . Terminals 3 | . 3 . Fabricators . | . . . Repair Stations . | . . . Recycling Units . | . . . Scanalyzers . | . . . Garrison Access . | . . . Total Hacks 8 | . 8 . Successful 4 | . 4 . Failed 4 | . 4 . Catastrophic 1 | . 1 . Database Lockouts . | . . . Manual 9 | . 9 . Terminals 8 | . 8 . Fabricators . | . . . Repair Stations . | . . . Recycling Units . | . . . Scanalyzers . | . . . Garrison Access . | . . . Terminal Hacks 2 | . 2 . Robot Analysis 2 | . 2 . Fabricator Hacks . | . . . Repair Station Hacks . | . . . Recycling Unit Hacks . | . . . Scanalyzer . | . . . Garrison Access Hacks . | . . . Unauthorized Hacks 2 | . 2 . Terminals 2 | . 2 . Botnet 2 | . 2 . Fabricators . | . . . Repair Stations . | . . . Recycling Units . | . . . Scanalyzers . | . . . Garrison Access . | . . . Data Cores Recovered . | . . . Used . | . . . Hacking Detections 2 | . 2 . Full Trace Events 1 | . 1 . Feedback Events . | . . . Feedback Blocked . | . . . Robot Schematics Acquired . | . . . Robots Built . | . . . Matter . | . . . Time . | . . . Total Robot Build Rating . | . . . Part Schematics Acquired . | . . . Parts Built . | . . . Matter . | . . . Time . | . . . Total Part Build Rating . | . . . Parts Repaired . | . . . Time . | . . . Parts Recycled . | . . . Recycled Matter . | . . . Retrieved Matter . | . . . Retrieved Components . | . . . Parts Scanalyzed . | . . . Part Schematics Acquired . | . . . Parts Damaged . | . . . Bothacking | -11 -10 -10 ------------ Run | Scr Mat Min Used RIF Installer . | . . . Robots Hacked . | . . . Non-combat . | . . . Combat . | . . . Robot Hacks Applied . | . . . Relay Couplers Released . | . . . Robots Rewired . | . . . Allies Hacked . | . . . Hacks Repelled . | . . . Allies | -11 -10 -10 -------- Run | Scr Mat Min Total Allies . | . . . Largest Group . | . . . Highest-Rated Group . | . . . Highest-Rated Ally . | . . . Total Orders . | . . . Ally Attacks . | . . . Total Damage . | . . . Kills . | . . . Allies Corrupted . | . . . Allies Melted . | . . . Intel | -11 -10 -10 ------- Run | Scr Mat Min Robot Analysis Total 2 | . 2 . Derelict Logs Recovered 1 | . . 1 Drone Launches . | . . . Drone Recoveries . | . . . Exploration | -11 -10 -10 ------------- Run | Scr Mat Min Turns Passed 959 | 55 350 554 Spaces Moved 649 | 44 194 411 Core 5 | 5 . . Treads 71 | 2 4 65 Legs . | . . . Wheels 573 | 37 190 346 Hover . | . . . Flight . | . . . Fastest Speed 50 | 50 80 90 Average Speed 98 | 97 95 101 Slowest Speed 160 | 160 160 160 Overloaded Moves . | . . . Propulsion Burnouts . | . . . Robots Hopped . | . . . Cave-ins Triggered 1 | . . 1 Exploration Rate (%) 31 | 4 33 58 Regions Visited 2 Branch Regions 1 Pre-discovered Areas 2 | . . 2 Known Exits Taken . | . . . Unknown Exits Taken 2 | 1 1 . Scrap Searched . | . . . Spaces Dug . | . . . Terrain Destroyed 84 | . . 84 Melee . | . . . Projectile . | . . . AOE 84 | . . 84 Actions | -11 -10 -10 --------- Run | Scr Mat Min Total 858 | 53 283 522 Wait 122 | . 32 90 Move 647 | 43 193 411 Hop . | . . . Pick Up 11 | 4 5 2 Fast Attach 10 | 6 3 1 Attach 5 | . 4 1 Detach . | . . . Swap 2 | . 1 1 Drop . | . . . Fire 59 | . 45 14 Melee . | . . . Ram . | . . . Kick . | . . . Crush . | . . . Escape Stasis . | . . . Rewire 2 | . . 2 Trap . | . . . Miscellaneous . | . . . Route ------- -11/Scrapyard -10/Materials -10/Mines History --------- Turn | Location | Event 29 | -11/Scrapyard | Discovered new exit (range 16) 56 | -11/Scrapyard | Entered Materials 305 | -10/Materials | Build established: Mutant 307 | -10/Materials | Discovered new exit (range 15) 378 | -10/Materials | Core integrity fell below 50% 390 | -10/Materials | Lost 4 parts (1p2n1w) 406 | -10/Materials | Entered Mines 463 | -10/Mines | Assembled infested the area 468 | -10/Mines | Learned location of Storage (-9) 951 | -10/Mines | Core integrity fell below 20% 961 | -10/Mines | Crushed by falling debris 961 | -10/Mines | Smashed by cave-in Last Messages --------------- 00818_ Plasma Injector explodes. 00818_ S-10 Pest destroyed. 00831_ Acquired 1 matter. 00834_ Acquired Lgt. Ion Engine. 00842_ Acquired Lgt. Assault Rifle. 00915_ K-01 Serf collects debris. 00926_ Lgt. Ion Engine destroyed. 00926_ K-01 Serf destroyed. 00933_ The unstable cave ceiling collapses. 00944_ Destroyed Shock Absorption System. 00946_ Grenade Launcher destroyed. 00946_ Wheel destroyed. 00948_ The unstable cave ceiling collapses. 00957_ Destroyed Lgt. Deuterium Engine. 00958_ The unstable cave ceiling collapses. 00961_ Crushed by falling debris. 00961_ Lgt. Assault Rifle destroyed. 00961_ System corrupted by crushing effect (+3). 00961_ Assault Rifle destroyed. 00961_ System corrupted by crushing effect (+3). Map ----- +----------------------------------------------------+ | | | ?????????????????????????????????????????????????? | | ?????????????????????????????????????????????????? | | ???##########????????#######?????????????????????? | | ??##""# #"#"##??????## ##????????????????????? | | ??#" #??????# #????????????????????? | | ??#" "??????# #????????????????????? | | ??#" ##?????## ##???##??????####?????? | | ??#" "#??????### ##??# ##????## ##????? | | ??# "#????????## ### #???## #????? | | ??# ##?????????# #????# ###### | | ??# "#?????????# #????# | | ??## ##?????????# ##????# | | ??#" #??????????# ##?????## ### | | ??##""" "##??????????# ##???????####### | | ???###### ###???????????## #?????????????# | | ???###### #??????????????## ##????????????## | | ???# #???????????????# #?????????????# | | ???# ######???????????????# #????????????## | | ???# #???????????????###### #?????????#### | | ?### #???????????????# #??????#### # | | ?# #?????????????### #?????## # # % # | | ?# ###?????????????# ###???### ## # ## | | ?# #???????????????# # ###### # ## % | | ?# #??????????????## ## # # ## ### ## | | ?# #??????????????# @ # # # | | ?# #??????????????# % ### # | | ?# #??????????????# ## % ### ######## | | ?# #??????????????# ### # ## # ###???? | | ?# #?????????????### ### # ## # ##??? | | ?# ####??????????# ##?#### # ## ##?? | | ?# ##?????????# ## ????# # % #?? | | ## ########### ## #???#### #?? | | # # ?????# #?# | | ############### d ##????# #### | | ##????????????? # ?????# ##### ##### | | ##?????????????? # ????# ##???# | | #####??????????????## # ???# #????# | | ????????????????????### # ## ???# % ????####### | | ???????????????????????##? #??#??## ?????????# | | ?????????????????????????? ??????## #?????????## | | ?????????????????????????? ????????# ##??????????? | | ??????????????????????????????????? ????????????? | | ???????????????????????????????????# ????????????? | | ??????????????????????????????????? ????????????? | | ??????????????????????????????????? ????????????? | | ??????????????????????????????????? ????????????? | | ??????????????????????????????????? ????????????? | | ?????????????????????????????????????????????????? | | ?????????????????????????????????????????????????? | +----------------------------------------------------+ Best States ------------- Heat Dissipation 25 Energy Generation 10 Energy Capacity 125 Matter Stores 300 Matter Capacity 300 Sight Range 16 Terrain Scan Density 10 Evasion (%) 44 Recoil Reduction 1 Item Schematics ----------------- None Robot Schematics ------------------ None Fabricated ------------ Nothing Alien Tech Used ----------------- None Achievements -------------- None Challenges ------------ None Game ------ Seed MetafiberAccelerationCleaver Manual? 0 Play Time 00:10:25 Cumulative 29.1 hours Start 2020.09.08 @ 14:15:44 End 2020.09.08 @ 14:26:46 Sessions 1 Manual Loads 0 Difficulty Rogue Special Mode None Game No. 63 Rogue 63 Adventurer 0 Explorer 0 Win Type - Total 0 Types 0/0/0/0/0/0/0 Lore% 31 Gallery% 34 Achievement% 26 Wizard Run 0 Options --------- ASCII 0 Keyboard 1 Movement Vi Keybinds 0 Fullscreen 1 Font 18/SmallcapsGlow Map View 76x50 Tactical HUD 1 Map Filters NONE Filters NONE Steam 1 RUN: 9f4912a1-c15a-456a-a8e2-1a5b71dbffeb